fUSD/lending_fUSD_20260406
["ID","MTS","AMOUNT","RATE_DAILY","PERIOD"]
[419913613,1775502641987,-469.05755082,0.0001427,2]
[419913614,1775502641998,-500.0,0.0001427,2]
[419913615,1775502642008,-500.0,0.0001427,2]
[419913616,1775502642018,-500.0,0.0001427,2]
[419913617,1775502642027,-500.0,0.0001427,2]
[419913618,1775502642037,-500.0,0.0001427,2]
[419913619,1775502642047,-500.0,0.0001427,2]
[419913620,1775502642057,-500.0,0.00014338,2]
[419913621,1775502642067,-500.0,0.00014338,2]
[419913622,1775502642077,-9226.92944521,0.00014344,2]
[419913623,1775502642087,-150.0,0.00014375,2]
[419913624,1775502642098,-150.0,0.00014375,2]
[419913625,1775502642108,-150.0,0.00014375,2]
[419913626,1775502642117,-150.0,0.00014375,2]
[419913627,1775502642128,-150.0,0.00014375,2]
[419913628,1775502642137,-150.0,0.00014375,2]
[419913629,1775502642147,-433.0,0.00014449,2]
[419913630,1775502642157,-259.532,0.0001451,2]
[419913631,1775502642167,-150.0,0.0001451,2]
[419913632,1775502642178,-150.0,0.0001451,2]
[419913633,1775502642188,-151.0,0.0001451,2]
[419913634,1775502642197,-240.284,0.0001451,2]
[419913635,1775502642207,-1347.0,0.0001451,2]
[419913636,1775502642217,-622.0,0.0001451,2]
[419913637,1775502642226,-3523.0,0.0001451,2]
[419913638,1775502642236,-150.0,0.0001451,2]
[419913639,1775502642246,-925.0,0.0001451,2]
[419913640,1775502642256,-1221.85,0.0001451,2]
[419913641,1775502642265,-160.0,0.00014512,2]
[419913642,1775502642276,-160.0,0.00014512,2]
[419913643,1775502642287,-500.0,0.00014521,2]
[419913644,1775502642296,-250.33567312,0.00014653,2]
[419913645,1775502642306,-9226.92944521,0.00014733,2]
[419913646,1775502642316,-155.23084569,0.00014767,2]
[419913647,1775502642326,-250.0,0.00014795,2]
[419913648,1775502642336,-300.0,0.00015,2]
[419913649,1775502642346,-578.20924308,0.0001504,2]
[419913650,1775502642355,-500.0,0.0001504,2]
[419913651,1775502642365,-1377.42282659,0.0001504,2]
[419913652,1775502642375,-500.0,0.0001504,2]
[419913653,1775502642385,-200.0,0.0001504,2]
[419913654,1775502642395,-695.39793187,0.0001504,2]
[419913655,1775502642404,-500.0,0.0001504,2]
[419913656,1775502642414,-500.0,0.0001504,2]
[419913657,1775502642424,-500.0,0.0001504,2]
[419913658,1775502642433,-500.0,0.0001504,2]
[419913659,1775502642442,-500.0,0.0001504,2]
[419913660,1775502642452,-500.0,0.0001504,2]
[419913661,1775502642462,-500.0,0.0001504,2]
[419913667,1775502642985,-500.0,0.0001504,2]
[419913668,1775502642996,-572.42572171,0.0001504,2]
[419913669,1775502643005,-398.03373912,0.0001504,2]
[419913670,1775502643015,-174.61919141,0.0001504,2]
[419913671,1775502643025,-500.0,0.00015058,2]
[419913672,1775502643036,-2000.0,0.00015058,2]
[419913673,1775502643046,-390.61,0.00015068,2]
[419913674,1775502643056,-9226.92944521,0.00015122,2]
[419913675,1775502643066,-501.0,0.00015127,3]
[419913676,1775502643076,-500.0,0.00015159,2]
[419913677,1775502643086,-150.0,0.00015174,2]
[419913678,1775502643096,-209.0065,0.000152,2]
[419913679,1775502643105,-332.244979,0.00015201,7]
[419913680,1775502643114,-257.74156,0.00015201,7]
[419913681,1775502643124,-220.086516,0.00015201,7]
[419913682,1775502643135,-170.733783,0.00015201,7]
[419913683,1775502643144,-802.0,0.00015269,2]
[419913684,1775502643154,-1216.0,0.00015269,2]
[419913685,1775502643164,-3292.0,0.00015314,2]
[419913686,1775502643174,-484.0,0.0001536,2]
[419913687,1775502643185,-257.37847219,0.00015362,2]
[419913688,1775502643195,-442.74827986,0.00015362,2]
[419913689,1775502643205,-350.0,0.00015366,2]
[419913690,1775502643214,-484.0,0.00015367,2]
[419913691,1775502643224,-184.713792,0.00015368,7]
[419913692,1775502643234,-900.0,0.000154,5]
[419913693,1775502643244,-350.0,0.00015419,2]
[419913694,1775502643254,-1100.0,0.00015452,2]
[419913695,1775502643264,-2500.0,0.00015452,2]
[419913696,1775502643274,-1200.0,0.000155,5]
[419913697,1775502643284,-500.0,0.0001551,2]
[419913698,1775502643294,-500.0,0.0001551,2]
[419913699,1775502643304,-9226.92944521,0.00015511,2]
[419913700,1775502643313,-160.38617764,0.00015534,2]
[419913701,1775502643323,-1428.38747117,0.00015588,2]
[419913702,1775502643334,-200.0,0.00015588,2]
[419913703,1775502643343,-181.08010149,0.00015588,2]
[419913704,1775502643353,-200.0,0.000156,5]
[419913705,1775502643363,-2000.0,0.000156,2]
[419913706,1775502643373,-151.0,0.00015641,2]
[419913707,1775502643382,-1269.59,0.00015682,2]
[419913708,1775502643392,-553.47,0.00015684,2]
[419913709,1775502643401,-2681.04,0.00015684,2]
[419913710,1775502643411,-200.0,0.000157,5]
[419913711,1775502643420,-736.0,0.00015728,2]
[419913712,1775502643430,-484.0,0.00015729,2]
[419913713,1775502643440,-150.0,0.00015729,2]
[419913714,1775502643450,-1000.0,0.0001573,2]
[419913715,1775502643459,-249.0,0.00015732,2]
[419913716,1775502643469,-162.0,0.00015749,2]
[419913717,1775502643479,-150.0,0.00015765,2]
[419913718,1775502643488,-218.0,0.00015769,2]
[419913719,1775502643498,-500.0,0.00015775,2]
[419913720,1775502643508,-630.70865542,0.00015775,2]
[419913721,1775502643518,-200.0,0.000158,5]
[419913722,1775502643527,-162.0,0.00015821,2]
[419913723,1775502643537,-500.0,0.00015838,2]
[419913724,1775502643546,-2000.0,0.0001584,2]
[419913725,1775502643556,-2000.0,0.0001584,2]
[419913726,1775502643565,-2000.0,0.0001584,2]
[419913727,1775502643576,-500.0,0.00015872,2]
[419913729,1775502643585,-200.0,0.00015872,2]
[419913731,1775502643594,-2706.012,0.00015874,2]
[419913732,1775502643604,-164.026,0.00015874,2]
[419913733,1775502643614,-249.0,0.00015875,2]
[419913734,1775502643623,-822.39024305,0.0001588,2]
[419913735,1775502643633,-200.0787906,0.0001588,2]
[419913736,1775502643642,-822.39024303,0.0001589,2]
[419913737,1775502643652,-500.0,0.0001589,2]
[419913738,1775502643662,-500.0,0.0001589,2]
[419913739,1775502643671,-500.0,0.0001589,2]
[419913740,1775502643681,-500.0,0.0001589,2]
[419913741,1775502643691,-500.0,0.0001589,2]
[419913742,1775502643700,-500.0,0.0001589,2]
[419913743,1775502643710,-500.0,0.0001589,2]
[419913744,1775502643719,-500.0,0.0001589,2]
[419913745,1775502643729,-2000.0,0.0001589,2]
[419913746,1775502643738,-25000.0,0.00015891,3]
[419913747,1775502643748,-500.0,0.00015899,2]
[419913748,1775502643757,-155.23084569,0.000159,2]
[419913749,1775502643766,-25000.0,0.000159,3]
[419913750,1775502643776,-9226.92944521,0.000159,2]
[419913751,1775502643785,-200.0,0.000159,5]
[419913752,1775502643795,-221.77992919,0.000159,2]
[419913753,1775502643805,-822.39024303,0.000159,2]
[419913754,1775502643814,-453.94719217,0.000159,2]
[419913755,1775502643824,-453.9471921,0.000159,2]
[419913756,1775502643833,-453.9471921,0.000159,2]
[419913757,1775502643842,-453.9471921,0.000159,2]
[419913758,1775502643852,-453.9471921,0.000159,2]
[419913759,1775502643861,-453.9471921,0.000159,2]
[419913760,1775502643870,-453.9471921,0.000159,2]
[419913761,1775502643880,-453.9471921,0.000159,2]
[419913762,1775502643889,-453.9471921,0.000159,2]
[419913763,1775502643898,-453.9471921,0.000159,2]
[419913764,1775502643908,-453.9471921,0.000159,2]
[419913765,1775502643918,-453.9471921,0.000159,2]
[419913766,1775502643927,-453.9471921,0.000159,2]
[419913767,1775502643937,-2164.0,0.000159,5]
[419913768,1775502643947,-2000.0,0.000159,2]
[419913769,1775502643956,-1000.0,0.00015906,2]
[419913770,1775502643966,-1000.0,0.00015913,2]
[419913771,1775502643975,-150.0,0.00015917,2]
[419913772,1775502643985,-350.0,0.00015926,2]
[419913773,1775502643995,-1000.0,0.00015938,2]
[419913774,1775502644005,-570.79309048,0.00015942,2]
[419913775,1775502644015,-1000.0,0.00015949,2]
[419913776,1775502644024,-1000.0,0.00015955,2]
[419913777,1775502644034,-1000.0,0.00015959,2]
[419913778,1775502644044,-287.42148692,0.0001596,2]
[419913779,1775502644053,-1000.0,0.00015965,2]
[419913780,1775502644062,-1000.0,0.00015965,2]
[419913781,1775502644072,-1000.0,0.00015965,2]
[419913782,1775502644081,-1000.0,0.00015965,2]
[419913783,1775502644091,-1000.0,0.00015965,2]
[419913784,1775502644101,-1000.0,0.00015965,2]
[419913785,1775502644111,-1000.0,0.00015965,2]
[419913786,1775502644121,-1000.0,0.00015965,2]
[419913787,1775502644130,-1000.0,0.00015965,2]
[419913788,1775502644140,-1000.0,0.00015965,2]
[419913789,1775502644149,-1000.0,0.00015965,2]
[419913790,1775502644159,-398.985,0.00015965,2]
[419913791,1775502644168,-500.0,0.00015973,2]
[419913792,1775502644177,-501.7767113,0.00015973,2]
[419913793,1775502644187,-500.25654321,0.00015973,2]
[419913794,1775502644196,-500.0,0.00015973,2]
[419913795,1775502644205,-500.0,0.00015973,2]
[419913796,1775502644214,-500.0,0.00015973,2]
[419913797,1775502644223,-500.0,0.00015973,2]
[419913798,1775502644232,-500.0,0.00015973,2]
[419913799,1775502644242,-500.0,0.00015973,2]
[419913800,1775502644251,-500.0,0.00015973,2]
[419913801,1775502644260,-556.68829625,0.00015973,2]
[419913802,1775502644269,-500.0,0.00015973,2]
[419913803,1775502644278,-286.46237648,0.00015973,2]
[419913804,1775502644287,-500.0,0.00015973,2]
[419913805,1775502644297,-500.90594274,0.00015973,2]
[419913806,1775502644306,-500.96410238,0.00015973,2]
[419913807,1775502644315,-501.64853068,0.00015973,2]
[419913808,1775502644324,-500.2985009,0.00015973,2]
[419913809,1775502644333,-283.53326646,0.00015973,2]
[419913810,1775502644342,-150.0,0.00015973,2]
[419913811,1775502644351,-150.00000001,0.00015973,2]
[419913812,1775502644360,-150.0,0.00015973,2]
[419913813,1775502644369,-500.0,0.00015973,2]
[419913814,1775502644378,-500.0,0.00015973,2]
[419913815,1775502644387,-500.51473043,0.00015973,2]
[419913816,1775502644397,-500.0,0.00015973,2]
[419913817,1775502644407,-500.0,0.00015973,2]
[419913818,1775502644416,-500.0,0.00015973,2]
[419913819,1775502644425,-500.0,0.00015973,2]
[419913820,1775502644435,-501.47117302,0.00015973,2]
[419913821,1775502644444,-502.32819122,0.00015973,2]
[419913822,1775502644453,-500.0,0.00015973,2]
[419913823,1775502644462,-500.0,0.00015973,2]
[419913824,1775502644471,-500.0,0.00015973,2]
[419913825,1775502644480,-337.84455229,0.00015973,2]
[419913826,1775502644490,-163.81595005,0.00015973,2]
[419913827,1775502644499,-429.76417009,0.00015973,2]
[419913828,1775502644509,-500.0,0.00015973,2]
[419913829,1775502644518,-500.0,0.00015973,2]
[419913830,1775502644527,-500.0,0.00015973,2]
[419913831,1775502644536,-474.500506,0.00015973,2]
[419913832,1775502644545,-500.0,0.00015973,2]
[419913833,1775502644554,-352.48557695,0.00015973,2]
[419913834,1775502644563,-503.55252603,0.00015973,2]
[419913835,1775502644572,-561.18350506,0.00015973,2]
[419913836,1775502644581,-500.0,0.00015973,2]
[419913837,1775502644590,-164.37135814,0.00015973,2]
[419913838,1775502644599,-500.0,0.00015973,2]
[419913839,1775502644608,-566.37,0.00015979,2]
[419913840,1775502644617,-500.0,0.00015979,2]
[419913841,1775502644626,-500.0,0.00015979,2]
[419913842,1775502644635,-360795.2881351,0.0001598,2]
[419913843,1775502644644,-3172.8749619,0.0001598,2]
[419913844,1775502644653,-1383.0618739,0.0001598,2]
[419913845,1775502644662,-292293.5508911,0.0001598,2]
[419913846,1775502644671,-1328.1504529,0.0001598,2]
[419913847,1775502644680,-1000.0,0.00015988,2]
[419913848,1775502644690,-1000.0,0.00015988,2]
[419913849,1775502644699,-1000.0,0.00015988,2]
[419913850,1775502644708,-1000.0,0.00015988,2]
[419913851,1775502644717,-1000.0,0.00015988,2]
[419913852,1775502644726,-1000.0,0.00015988,2]
[419913853,1775502644735,-1000.0,0.00015988,2]
[419913854,1775502644746,-266.452,0.00015988,2]
[419913855,1775502644755,-202.74253669,0.0001599,2]
[419913856,1775502644764,-202.74253669,0.0001599,2]
[419913857,1775502644773,-351.0,0.00015996,4]
[419913858,1775502644782,-661.30319743,0.00015996,4]
[419913859,1775502644791,-151.0,0.00015997,2]
[419913860,1775502644801,-151.0,0.00015997,2]
[419913861,1775502644810,-489.61287223,0.00015998,2]
[419913862,1775502644819,-500.0,0.00015998,2]
[419913863,1775502644828,-666.0,0.00015999,2]
[419913864,1775502644838,-666.0,0.00015999,2]
[419913865,1775502644847,-1062.52406751,0.00015999,5]
[419913866,1775502644856,-150.0,0.00015999,2]
[419913867,1775502644865,-500.0,0.00015999,2]
[419913868,1775502644874,-500.0,0.00015999,2]
[419913869,1775502644883,-500.0,0.00015999,2]
[419913870,1775502644893,-500.0,0.00015999,2]
[419913871,1775502644903,-163.75,0.00015999,2]
[419913872,1775502644912,-500.0,0.00015999,2]
[419913873,1775502644921,-500.0,0.00015999,2]
[419913874,1775502644931,-500.0,0.00015999,2]
[419913875,1775502644940,-500.0,0.00015999,2]
[419913876,1775502644949,-500.0,0.00015999,2]
[419913877,1775502644959,-500.0,0.00015999,2]
[419913878,1775502644967,-500.0,0.00015999,2]
[419913879,1775502644977,-500.0,0.00015999,2]
[419913880,1775502644986,-500.0,0.00015999,2]
[419913881,1775502644996,-500.0,0.00015999,2]
[419913882,1775502645005,-500.0,0.00015999,2]
[419913883,1775502645014,-500.0,0.00015999,2]
[419913884,1775502645024,-500.0,0.00015999,2]
[419913885,1775502645034,-500.0,0.00015999,2]
[419913886,1775502645043,-500.0,0.00015999,2]
[419913887,1775502645052,-500.0,0.00015999,2]
[419913888,1775502645062,-500.0,0.00015999,2]
[419913889,1775502645071,-500.0,0.00015999,2]
[419913890,1775502645080,-500.0,0.00015999,2]
[419913891,1775502645089,-500.0,0.00015999,2]
[419913892,1775502645098,-500.0,0.00015999,2]
[419913893,1775502645107,-500.0,0.00015999,2]
[419913894,1775502645116,-500.0,0.00015999,2]
[419913895,1775502645125,-500.0,0.00015999,2]
[419913896,1775502645135,-520.24272845,0.00015999,2]
[419913897,1775502645143,-150.0,0.00015999,2]
[419913898,1775502645153,-230.53339563,0.00015999,2]
[419913899,1775502645162,-245577.83276364,0.00016,2]
[419913900,1775502645171,-117963.0659877,0.00016,2]
[419913901,1775502645180,-414817.94160627,0.00016,2]
[419913902,1775502645243,-55466.10236343,0.00016,2]
[419913903,1775502645252,-200.0,0.00016,3]
[419913904,1775502645261,-160.0,0.00016,30]
[419913905,1775502645270,-182047.57775565,0.00016,2]
[419913906,1775502645279,-150.0,0.00016,3]
[419913907,1775502645288,-3499519.65510509,0.00016,2]
[419913908,1775502645406,-3771.0,0.00014177,2]
[419913909,1775502645416,-198.36570913,0.0001588,2]
[419913910,1775502645425,-25979.612768,0.00016,2]
[419913911,1775502645472,-306.069,0.00016,2]
[419913912,1775502645512,-1316.30482803,0.00016,2]
[419913913,1775502645541,-7022.56090723,0.00016,2]
[419913914,1775502645560,-1904922.49087254,0.00016,2]
[419913919,1775502646019,-177.47045184,0.00013727,2]
[419913920,1775502646028,-198.36570913,0.000159,2]
[419913921,1775502646038,-453.9471921,0.000159,2]
[419913922,1775502646047,-154.71053661,0.00016,2]
[419913923,1775502646125,-24.70801975,0.00016,2]
[419913928,1775502647108,-1165.57730191,0.00013011,2]
[419913929,1775502647129,-14647.93970621,0.00013011,2]
[419913930,1775502647139,-1165.0,0.00015988,2]
[419913931,1775502647149,-601.0,0.00015999,2]
[419913932,1775502647158,-29835.41684679,0.00016,2]
[419913933,1775502647170,-793.1136,0.00016,2]
[419913934,1775502647199,-462103.91646196,0.00016,2]
[419913935,1775502647210,-7585.45020132,0.00016,2]
[419913936,1775502647222,-567.1714759,0.00016,2]
[419913937,1775502647237,-2112.0,0.00016,2]
[419913938,1775502647257,-130943.19355146,0.00016,2]
[419913939,1775503132782,30000.0,0.00016,120]
[419913941,1775503637292,-184.31,0.00011342,3]
[419913942,1775503637315,-191.43,0.00011342,2]
[419913943,1775503637338,-19.67488717,0.00011843,2]
[419913944,1775503745087,-166.66666666,0.00011743,2]
[419913945,1775503745108,-2145.13411283,0.00011843,2]
[419913946,1775503745128,-164.026,0.00011843,2]
[419913947,1775503745154,-1200.0,0.00011983,2]
[419913948,1775503745175,-300.0,0.00011984,2]
[419913949,1775503745194,-1824.4793,0.00011985,2]
[419913950,1775503745214,-7463.48160275,0.00011985,2]
[419913951,1775503755111,-575.64366706,0.00011985,2]
[419913952,1775503760469,-1168.35563196,0.00011985,2]
[419913962,1775503833239,-1200.0,0.00011984,2]
[419913963,1775503833249,-165.06846975,0.00011985,2]
[419913965,1775503833259,-5423.86660217,0.00011985,2]
[419913967,1775503833269,-189.21692834,0.00011985,2]
[419913968,1775503833278,-169.07887514,0.00012073,2]
[419913969,1775503833318,-330.92112486,0.00012073,2]
[419913970,1775503833328,-293.43675442,0.00012084,2]
[419913971,1775503833341,-23.85619077,0.00012084,2]
[419913972,1775503833351,-500.0,0.00012084,2]
[419913973,1775503833360,-500.0,0.00012084,2]
[419913974,1775503833371,-500.0,0.00012084,2]
[419913975,1775503833380,-388.95903388,0.00012084,2]
[419913976,1775503833392,-111.04096612,0.00012084,2]
[419913977,1775503833401,-188.95903388,0.00012084,2]
[419913978,1775503833413,-397.78457891,0.00012084,2]
[419913979,1775503833432,-7.34489782,0.00012084,2]
[419913980,1775503833441,-440.26775448,0.00012084,2]
[419913981,1775503833803,-59.73224552,0.00012084,2]
[419913982,1775503833854,-150.0,0.00012084,2]
[419913983,1775503833863,-1099.72537266,0.00012085,2]
[419913984,1775503833880,-1782.3873477,0.00012085,2]
[419913985,1775503833891,-11168.81144696,0.00012085,2]
[419913986,1775503833902,-4434.76220405,0.00012085,2]
[419913987,1775503838128,-426.61846658,0.00012085,2]
[419913988,1775503838226,-5861.0,0.00012085,2]
[419914051,1775503840934,-415896.68176478,0.00012085,2]
[419914052,1775503840998,-276.99747719,0.00012085,2]
[419914062,1775503843932,-17511.03259252,0.00011985,2]
[419914065,1775503846089,-417.37929,0.00011985,2]
[419914066,1775503846145,-18799.28192885,0.00011985,2]
[419914067,1775503846310,-141856.93868701,0.00011985,2]
[419914071,1775503952712,158.44,6.548e-05,2]
[419914072,1775503952919,158.44,9.823e-05,2]
[419915968,1775504848110,-252.82627866,0.00010911,2]
[419916070,1775504852076,-249.21600873,0.00010911,2]
[419916405,1775504958509,490.0,0.00010884,2]
[419916417,1775505034367,-197.0441,0.00010811,2]
[419916418,1775505034377,-1200.0,0.00010883,2]
[419916419,1775505034386,-3808.12085616,0.00010884,2]
[419916420,1775505034398,-8070.31914384,0.00010884,2]
[419916421,1775505034408,-132.75771261,0.00010911,2]
[419916422,1775505034417,-600.0,0.00011009,2]
[419916423,1775505034427,-600.0,0.00011009,2]
[419916424,1775505034437,-600.0,0.00011009,2]
[419916425,1775505034447,-250.0,0.00011136,2]
[419916426,1775505034456,-152.59,0.00011233,2]
[419916427,1775505034466,-150.0,0.00011361,2]
[419916428,1775505034475,-300.0,0.00011361,2]
[419916429,1775505034485,-300.0,0.00011361,2]
[419916430,1775505034494,-195.0,0.00011362,2]
[419916431,1775505034503,-1874.76840946,0.00011362,2]
[419916432,1775505034515,-1466.46,0.00011362,2]
[419916433,1775505034632,-13127.04337363,0.00011362,2]
[419916434,1775505034738,-36375.20996777,0.00011362,2]
[419916435,1775505034757,-654.60824914,0.00011362,2]
[419916436,1775505034766,-150.0,0.000114,2]
[419916437,1775505034776,-150.0,0.00011441,2]
[419916438,1775505034786,-15.19724653,0.00011441,2]
[419916439,1775505034880,-38.09180874,0.00011441,2]
[419916444,1775505038328,-96.71094473,0.00011441,2]
[419916445,1775505038337,-150.0,0.00011441,2]
[419916446,1775505038347,-150.0,0.00011441,2]
[419916447,1775505038356,-150.0,0.00011441,2]
[419916448,1775505038365,-150.0,0.00011441,2]
[419916449,1775505038375,-150.0,0.00011441,2]
[419916450,1775505038384,-150.0,0.00011441,2]
[419916451,1775505038394,-150.0,0.00011441,2]
[419916452,1775505038403,-228.7400007,0.00011472,2]
[419916453,1775505038413,-208.6,0.00011568,2]
[419916454,1775505038422,-238.77575789,0.00011647,2]
[419916455,1775505038433,-284.56869761,0.00011647,2]
[419916456,1775505038540,-1885.0065445,0.00011647,2]
[419916457,1775505038550,-174.277,0.00011647,2]
[419916458,1775505038560,-20244.28432202,0.00011687,2]
[419916459,1775505038569,-2257.58341246,0.00011687,2]
[419916460,1775505038579,-2500.0,0.000117,4]
[419916461,1775505038588,-1733.9513202,0.00011706,2]
[419916462,1775505038598,-150.0,0.00011759,2]
[419916463,1775505038607,-17222.0512,0.00011785,2]
[419916464,1775505038617,-1500000.0,0.00011785,2]
[419916465,1775505038626,-16233.27765337,0.00011787,2]
[419916466,1775505038636,-5100.0,0.000118,4]
[419916467,1775505038645,-150.0,0.00011865,2]
[419916469,1775505038655,-150.0,0.00011865,2]
[419916471,1775505038664,-151.0,0.00011882,2]
[419916473,1775505038673,-195.55873738,0.00011884,2]
[419916475,1775505038683,-936621.4715,0.00011885,2]
[419916477,1775505038692,-7600.0,0.000119,4]
[419916479,1775505038702,-874.15546836,0.00011911,2]
[419916481,1775505038712,-1680.0,0.00011971,2]
[419916484,1775505038722,-600.0,0.00011971,2]
[419916486,1775505038732,-195.0,0.00011972,2]
[419916488,1775505038741,-500.0,0.00011973,2]
[419916490,1775505038750,-200.0,0.00011978,2]
[419916492,1775505038759,-500.0,0.00011978,2]
[419916494,1775505038769,-151.0,0.00011978,2]
[419916496,1775505038778,-151.0,0.00011978,2]
[419916498,1775505038788,-151.0,0.00011978,2]
[419916500,1775505038797,-151.0,0.00011978,2]
[419916502,1775505038806,-151.0,0.00011978,2]
[419916504,1775505038816,-151.0,0.00011978,2]
[419916506,1775505038825,-151.0,0.00011978,2]
[419916508,1775505038835,-151.0,0.00011978,2]
[419916510,1775505038844,-151.0,0.00011978,2]
[419916512,1775505038853,-151.0,0.00011978,2]
[419916514,1775505038862,-151.0,0.00011978,2]
[419916516,1775505038871,-151.0,0.00011978,2]
[419916518,1775505038881,-151.0,0.00011978,2]
[419916520,1775505038890,-151.0,0.00011978,2]
[419916522,1775505038898,-151.0,0.00011978,2]
[419916524,1775505038907,-151.0,0.00011978,2]
[419916526,1775505038916,-151.0,0.00011978,2]
[419916528,1775505038925,-151.0,0.00011978,2]
[419916530,1775505038935,-151.0,0.00011978,2]
[419916532,1775505038944,-151.0,0.00011978,2]
[419916534,1775505038954,-151.0,0.00011978,2]
[419916536,1775505038963,-151.0,0.00011978,2]
[419916538,1775505038973,-151.0,0.00011978,2]
[419916539,1775505038981,-151.0,0.00011978,2]
[419916542,1775505038991,-151.0,0.00011978,2]
[419916544,1775505039000,-151.0,0.00011978,2]
[419916546,1775505039009,-273.20808876,0.00011978,2]
[419916548,1775505039019,-496.32304571,0.00011978,2]
[419916550,1775505039028,-151.6719064,0.00011978,2]
[419916551,1775505039037,-151.0,0.00011982,2]
[419916552,1775505039046,-151.0,0.00011982,2]
[419916554,1775505039055,-1062.52406751,0.00011984,3]
[419916555,1775505039064,-1240.41933555,0.00011984,3]
[419916556,1775505039074,-300.0,0.00012002,2]
[419916557,1775505039083,-250.0,0.00012002,2]
[419916558,1775505039092,-663.04549065,0.00012002,2]
[419916559,1775505039101,-1104.0,0.00012004,2]
[419916560,1775505039110,-150.0,0.00012077,2]
[419916561,1775505039120,-150.0,0.00012077,2]
[419916562,1775505039129,-150.0,0.00012077,2]
[419916563,1775505039140,-150.0,0.00012077,2]
[419916564,1775505039150,-150.0,0.00012077,2]
[419916565,1775505039159,-151.0,0.00012085,2]
[419916566,1775505039168,-151.0,0.00012085,2]
[419916567,1775505039178,-20244.28432197,0.00012155,2]
[419916568,1775505039187,-16233.27765337,0.00012244,2]
[419916569,1775505039197,-152.0,0.00012255,3]
[419916570,1775505039206,-2933.8,0.00012255,3]
[419916571,1775505039216,-2933.8,0.00012255,3]
[419916572,1775505039226,-150.0,0.00012289,2]
[419916573,1775505039234,-150.0,0.00012289,2]
[419916574,1775505039244,-2257.58341244,0.00012289,2]
[419916575,1775505039254,-150.0,0.00012395,2]
[419916576,1775505039263,-255.0,0.00012418,2]
[419916577,1775505039272,-524.0,0.0001242,2]
[419916578,1775505039282,-403.0,0.0001248,2]
[419916579,1775505039291,-152.0,0.00012489,4]
[419916580,1775505039300,-195.0,0.00012497,2]
[419916581,1775505039310,-300.0,0.00012497,2]
[419916582,1775505039319,-195.0,0.00012497,2]
[419916583,1775505039328,-200.0,0.00012526,2]
[419916584,1775505039337,-195.55873735,0.00012553,2]
[419916585,1775505039347,-20244.28432197,0.00012623,2]
[419916586,1775505039356,-500.0,0.00012643,2]
[419916587,1775505039365,-500.0,0.00012643,2]
[419916588,1775505039375,-500.0,0.00012643,2]
[419916589,1775505039384,-168.1499,0.000127,2]
[419916590,1775505039394,-16233.27765337,0.00012701,2]
[419916591,1775505039403,-283.53326646,0.00012712,2]
[419916592,1775505039413,-150.0,0.00012712,2]
[419916593,1775505039422,-150.0,0.00012712,2]
[419916594,1775505039431,-150.0,0.00012712,2]
[419916595,1775505039440,-164.7501591,0.00012712,2]
[419916596,1775505039451,-150.0,0.00012712,2]
[419916597,1775505039460,-150.0,0.00012712,2]
[419916598,1775505039469,-150.00000001,0.00012712,2]
[419916599,1775505039478,-152.0,0.00012723,5]
[419916600,1775505039487,-150.0,0.00012875,2]
[419916601,1775505039497,-272.17771,0.00012876,2]
[419916602,1775505039506,-2257.58341244,0.00012891,2]
[419916603,1775505039515,-152.0,0.00012957,6]